Department Family,Entity,Date Paid,Expense Type,Expense Area,Supplier,Transaction Number,Amount (�),Supplier VAT Registration Number
BEIS,Met Office,2024-05-01,06 ACCOMMODATION,CHIEF FINANCIAL OFFICER,ABOVE THE REST COMMERCIAL CLEANING LTD,491857,809.16,166969348
BEIS,Met Office,2024-05-10,11 SERVICES,CHIEF FINANCIAL OFFICER,ADAM PHONES LTD,492158,150,538877093
BEIS,Met Office,2024-05-03,11 SERVICES,CHIEF FINANCIAL OFFICER,Alcumus Sypol Ltd part of EcoOnline,491906,13091,945 7777 63
BEIS,Met Office,2024-05-17,11 SERVICES,CHIEF FINANCIAL OFFICER,ALLSTAR BUSINESS SOLUTIONS LTD,492469,2893.19,747880191
BEIS,Met Office,2024-05-02,11 SERVICES,CHIEF FINANCIAL OFFICER,ALLSTAR BUSINESS SOLUTIONS LTD,491996,3019.2,747880191
BEIS,Met Office,2024-05-10,13 MISCELLANEOUS,CHIEF FINANCIAL OFFICER,ANTRIM HILLS SPRING WATER CO LTD,492134,27,517173455
BEIS,Met Office,2024-05-16,11 SERVICES,CHIEF FINANCIAL OFFICER,ANVIL MOBILE LIMITED,492282,82.6,981686175
BEIS,Met Office,2024-05-14,03 STAFF COSTS T&S,CHIEF FINANCIAL OFFICER,APPLE CENTRAL TAXIS,492359,967.5,449238720
BEIS,Met Office,2024-05-02,11 SERVICES,CHIEF FINANCIAL OFFICER,Ashfords Llp,491963,920,844502439
BEIS,Met Office,2024-05-20,06 ACCOMMODATION,CHIEF FINANCIAL OFFICER,BAE Systems Properties Ltd,492520,1878.63,641407169
BEIS,Met Office,2024-05-31,13 MISCELLANEOUS,CHIEF FINANCIAL OFFICER,BANNER GROUP LIMITED,492747,3.91,GB391085740
BEIS,Met Office,2024-05-21,11 SERVICES,CHIEF FINANCIAL OFFICER,BANNER GROUP LIMITED,492535,35.54,GB391085740
BEIS,Met Office,2024-05-21,13 MISCELLANEOUS,CHIEF FINANCIAL OFFICER,BECO LTD,492581,280.5,141572332
BEIS,Met Office,2024-05-07,06 ACCOMMODATION,CHIEF FINANCIAL OFFICER,BIDVEST NOONAN UK LTD,492087,209.71,GB847176988
BEIS,Met Office,2024-05-31,06 ACCOMMODATION,CHIEF FINANCIAL OFFICER,Biffa Waste Services Ltd,492759,86.06,537911627
BEIS,Met Office,2024-05-31,06 ACCOMMODATION,CHIEF FINANCIAL OFFICER,Biffa Waste Services Ltd,492802,89.5,537911627
BEIS,Met Office,2024-05-31,06 ACCOMMODATION,CHIEF FINANCIAL OFFICER,Biffa Waste Services Ltd,492760,174.9,537911627
BEIS,Met Office,2024-05-31,06 ACCOMMODATION,CHIEF FINANCIAL OFFICER,Biffa Waste Services Ltd,492751,210.52,537911627
BEIS,Met Office,2024-05-31,06 ACCOMMODATION,CHIEF FINANCIAL OFFICER,Biffa Waste Services Ltd,492761,369.98,537911627
BEIS,Met Office,2024-05-31,06 ACCOMMODATION,CHIEF FINANCIAL OFFICER,Biffa Waste Services Ltd,492756,501.28,537911627
BEIS,Met Office,2024-05-31,06 ACCOMMODATION,CHIEF FINANCIAL OFFICER,Biffa Waste Services Ltd,492757,804.88,537911627
BEIS,Met Office,2024-05-31,06 ACCOMMODATION,CHIEF FINANCIAL OFFICER,Biffa Waste Services Ltd,492762,816.84,537911627
BEIS,Met Office,2024-05-31,06 ACCOMMODATION,CHIEF FINANCIAL OFFICER,Biffa Waste Services Ltd,492754,835.17,537911627
BEIS,Met Office,2024-05-31,06 ACCOMMODATION,CHIEF FINANCIAL OFFICER,Biffa Waste Services Ltd,492755,970,537911627
BEIS,Met Office,2024-05-31,11 SERVICES,CHIEF FINANCIAL OFFICER,BITPOD LIMITED,492710,3979.09,124 9359 03
BEIS,Met Office,2024-05-21,11 SERVICES,CHIEF FINANCIAL OFFICER,British Red Cross Society,492436,612,706926227
BEIS,Met Office,2024-05-23,11 SERVICES,CHIEF FINANCIAL OFFICER,BT GLOBAL SERVICES,492569,512.11,245719348
BEIS,Met Office,2024-05-15,11 SERVICES,CHIEF FINANCIAL OFFICER,BT plc,492365,0.41,245719348
BEIS,Met Office,2024-05-08,11 SERVICES,CHIEF FINANCIAL OFFICER,BT plc,491955,9068.97,245719348
BEIS,Met Office,2024-05-31,06 ACCOMMODATION,CHIEF FINANCIAL OFFICER,CALOR GAS LIMITED,492814,979.73,207610984
BEIS,Met Office,2024-05-08,13 MISCELLANEOUS,CHIEF FINANCIAL OFFICER,CARDIFF EXECUTIVE CENTRE LTD,492136,6.29,864497378
BEIS,Met Office,2024-05-01,06 ACCOMMODATION,CHIEF FINANCIAL OFFICER,CARDIFF EXECUTIVE CENTRE LTD,491923,2370,864497378
BEIS,Met Office,2024-05-28,06 ACCOMMODATION,CHIEF FINANCIAL OFFICER,CBRE MANAGED SERVICES LTD,492633,39298.97,853936883
BEIS,Met Office,2024-05-28,06 ACCOMMODATION,CHIEF FINANCIAL OFFICER,CBRE MANAGED SERVICES LTD,492634,169500.01,853936883
BEIS,Met Office,2024-05-23,08 SOFTWARE LICENCES,CHIEF FINANCIAL OFFICER,CEMAR,492538,850,915042161
BEIS,Met Office,2024-05-02,06 ACCOMMODATION,CHIEF FINANCIAL OFFICER,COMMERCIAL MAINTENANCE SERVICES UK LTD (CMS),491937,20380.06,973018909
BEIS,Met Office,2024-05-20,06 ACCOMMODATION,CHIEF FINANCIAL OFFICER,CORBETT FARMS LTD,492518,100,133425301
BEIS,Met Office,2024-05-14,13 MISCELLANEOUS,CHIEF FINANCIAL OFFICER,COURIER FORCE,492344,165,924397208
BEIS,Met Office,2024-05-31,13 MISCELLANEOUS,CHIEF FINANCIAL OFFICER,COURIER FORCE,492797,165,924397208
BEIS,Met Office,2024-05-10,13 MISCELLANEOUS,CHIEF FINANCIAL OFFICER,COURIER FORCE,492157,170,924397208
BEIS,Met Office,2024-05-17,13 MISCELLANEOUS,CHIEF FINANCIAL OFFICER,COURIER FORCE,492470,285,924397208
BEIS,Met Office,2024-05-20,13 MISCELLANEOUS,CHIEF FINANCIAL OFFICER,CULLIGAN (UK) LIMITED,492462,312.96,GB 828382407
BEIS,Met Office,2024-05-21,FIXTURE & FITTINGS,CHIEF FINANCIAL OFFICER,D&G OFFICE SERVICES LTD,491771,-100,272997547
BEIS,Met Office,2024-05-21,FIXTURE & FITTINGS,CHIEF FINANCIAL OFFICER,D&G OFFICE SERVICES LTD,485934,100,272997547
BEIS,Met Office,2024-05-21,06 ACCOMMODATION,CHIEF FINANCIAL OFFICER,DARD CORPORATE ACCOUNT,492525,116.34,-
BEIS,Met Office,2024-05-10,06 ACCOMMODATION,CHIEF FINANCIAL OFFICER,Devon County Council,492246,14.19,142208113
BEIS,Met Office,2024-05-10,06 ACCOMMODATION,CHIEF FINANCIAL OFFICER,Devon County Council,492245,6097,142208113
BEIS,Met Office,2024-05-21,13 MISCELLANEOUS,CHIEF FINANCIAL OFFICER,DWYFOR COFFEE COMPANY LTD,492372,-15.88,559811116
BEIS,Met Office,2024-05-21,13 MISCELLANEOUS,CHIEF FINANCIAL OFFICER,DWYFOR COFFEE COMPANY LTD,492527,25,559811116
BEIS,Met Office,2024-05-01,13 MISCELLANEOUS,CHIEF FINANCIAL OFFICER,EDEN SPRINGS UK LTD,491896,171.92,232160411
BEIS,Met Office,2024-05-31,13 MISCELLANEOUS,CHIEF FINANCIAL OFFICER,EDEN SPRINGS UK LTD,492752,548.46,232160411
BEIS,Met Office,2024-05-17,06 ACCOMMODATION,CHIEF FINANCIAL OFFICER,EDF ENERGY CUSTOMERS PLC,492280,-590412.04,523041202
BEIS,Met Office,2024-05-17,06 ACCOMMODATION,CHIEF FINANCIAL OFFICER,EDF ENERGY CUSTOMERS PLC,492343,18929.94,523041202
BEIS,Met Office,2024-05-03,06 ACCOMMODATION,CHIEF FINANCIAL OFFICER,EDF ENERGY CUSTOMERS PLC,492038,191742.46,523041202
BEIS,Met Office,2024-05-03,06 ACCOMMODATION,CHIEF FINANCIAL OFFICER,EDF ENERGY CUSTOMERS PLC,492037,201130.28,523041202
BEIS,Met Office,2024-05-17,06 ACCOMMODATION,CHIEF FINANCIAL OFFICER,EDF ENERGY CUSTOMERS PLC,492279,588374.77,523041202
BEIS,Met Office,2024-05-03,06 ACCOMMODATION,CHIEF FINANCIAL OFFICER,EDF ENERGY CUSTOMERS PLC,492036,590412.04,523041202
BEIS,Met Office,2024-05-14,11 SERVICES,CHIEF FINANCIAL OFFICER,EDSON TIGER LTD,492364,2400,166910983
BEIS,Met Office,2024-05-08,11 SERVICES,CHIEF FINANCIAL OFFICER,EDSON TIGER LTD,492081,5350,166910983
BEIS,Met Office,2024-05-29,11 SERVICES,CHIEF FINANCIAL OFFICER,EIR,25864,62.4,4736919B
BEIS,Met Office,2024-05-20,03 STAFF COSTS T&S,CHIEF FINANCIAL OFFICER,ENTERPRISE RENT A CAR UK LTD,492501,99.4,215557314
BEIS,Met Office,2024-05-31,03 STAFF COSTS T&S,CHIEF FINANCIAL OFFICER,ENTERPRISE RENT A CAR UK LTD,492891,116.95,215557314
BEIS,Met Office,2024-05-28,03 STAFF COSTS T&S,CHIEF FINANCIAL OFFICER,ENTERPRISE RENT A CAR UK LTD,492749,2206.92,215557314
BEIS,Met Office,2024-05-08,03 STAFF COSTS T&S,CHIEF FINANCIAL OFFICER,ENTERPRISE RENT A CAR UK LTD,492140,2623.56,215557314
BEIS,Met Office,2024-05-21,03 STAFF COSTS T&S,CHIEF FINANCIAL OFFICER,ENTERPRISE RENT A CAR UK LTD,492534,2864.74,215557314
BEIS,Met Office,2024-05-13,03 STAFF COSTS T&S,CHIEF FINANCIAL OFFICER,ENTERPRISE RENT A CAR UK LTD,492340,3136.6,215557314
BEIS,Met Office,2024-05-23,06 ACCOMMODATION,CHIEF FINANCIAL OFFICER,Exeter City Council,489839,163800,142335594
BEIS,Met Office,2024-05-31,11 SERVICES,CHIEF FINANCIAL OFFICER,EXPONENTIAL-E,492878,31.18,GB798572653
BEIS,Met Office,2024-05-08,06 ACCOMMODATION,CHIEF FINANCIAL OFFICER,FAIR ISLE ELECTRICITY COMPANY LTD,492135,213.48,774548783
BEIS,Met Office,2024-05-14,07 EQUIPMENT,CHIEF FINANCIAL OFFICER,FG LIBRARY PRODUCTS LTD,492360,7195,765 3019 30
BEIS,Met Office,2024-05-28,06 ACCOMMODATION,CHIEF FINANCIAL OFFICER,FILTONGATE LIMITED,492708,3925,562 3530 56
BEIS,Met Office,2024-05-14,11 SERVICES,CHIEF FINANCIAL OFFICER,GAMMA TELECOM LTD,492276,52.35,823820344
BEIS,Met Office,2024-05-14,11 SERVICES,CHIEF FINANCIAL OFFICER,GAMMA TELECOM LTD,492276,570.83,823820344
BEIS,Met Office,2024-05-14,11 SERVICES,CHIEF FINANCIAL OFFICER,GAMMA TELECOM LTD,492276,27979.65,823820344
BEIS,Met Office,2024-05-08,11 SERVICES,CHIEF FINANCIAL OFFICER,GB GROUP PLC,492139,196.82,539716218
BEIS,Met Office,2024-05-10,11 SERVICES,CHIEF FINANCIAL OFFICER,GB GROUP PLC,492259,642.28,539716218
BEIS,Met Office,2024-05-20,11 SERVICES,CHIEF FINANCIAL OFFICER,GIBRALTAR NYNEX COMMUNICATIONS LTD,492180,660,NOVAT
BEIS,Met Office,2024-05-22,06 ACCOMMODATION,CHIEF FINANCIAL OFFICER,GOVERNMENT PROPERTY AGENCY,492621,-1949.8,888 8508 47
BEIS,Met Office,2024-05-22,06 ACCOMMODATION,CHIEF FINANCIAL OFFICER,GOVERNMENT PROPERTY AGENCY,492619,-2,888 8508 47
BEIS,Met Office,2024-05-22,06 ACCOMMODATION,CHIEF FINANCIAL OFFICER,GOVERNMENT PROPERTY AGENCY,492620,2,888 8508 47
BEIS,Met Office,2024-05-22,06 ACCOMMODATION,CHIEF FINANCIAL OFFICER,GOVERNMENT PROPERTY AGENCY,492622,1949.8,888 8508 47
BEIS,Met Office,2024-05-08,06 ACCOMMODATION,CHIEF FINANCIAL OFFICER,HAFREN DYFRDWY CYFYNGEDIG,492107,211.9,486985565
BEIS,Met Office,2024-05-23,06 ACCOMMODATION,CHIEF FINANCIAL OFFICER,Highland Council,492636,1494,663785203
BEIS,Met Office,2024-05-23,06 ACCOMMODATION,CHIEF FINANCIAL OFFICER,Highland Council,492637,1494,663785203
BEIS,Met Office,2024-05-23,06 ACCOMMODATION,CHIEF FINANCIAL OFFICER,Highland Council,492638,1494,663785203
BEIS,Met Office,2024-05-15,INFORMATION TECHNOLOGY,CHIEF FINANCIAL OFFICER,I J CANNINGS & SON LTD,492426,-5455,192803203
BEIS,Met Office,2024-05-15,INFORMATION TECHNOLOGY,CHIEF FINANCIAL OFFICER,I J CANNINGS & SON LTD,456563,5455,192803203
BEIS,Met Office,2024-05-16,11 SERVICES,CHIEF FINANCIAL OFFICER,INTEROUTE COMMUNICATIONS LIMITED,492437,8000,832 7071 39
BEIS,Met Office,2024-05-02,11 SERVICES,CHIEF FINANCIAL OFFICER,JERSEY TELECOM,491952,1299.29,NOTVATREG
BEIS,Met Office,2024-05-29,06 ACCOMMODATION,CHIEF FINANCIAL OFFICER,JR FLAT ROOFING,492735,975,-
BEIS,Met Office,2024-05-29,06 ACCOMMODATION,CHIEF FINANCIAL OFFICER,JR FLAT ROOFING,492735,2297,-
BEIS,Met Office,2024-05-29,06 ACCOMMODATION,CHIEF FINANCIAL OFFICER,JR FLAT ROOFING,492735,2600,-
BEIS,Met Office,2024-05-31,06 ACCOMMODATION,CHIEF FINANCIAL OFFICER,Lars Communications Ltd,492819,6714.81,531463858
BEIS,Met Office,2024-05-07,11 SERVICES,CHIEF FINANCIAL OFFICER,LEASEDRIVE RENTAL MANAGEMENT LTD,492090,1332.54,733546040
BEIS,Met Office,2024-05-03,11 SERVICES,CHIEF FINANCIAL OFFICER,MAWASEM LTD,491405,258162.21,197694731
BEIS,Met Office,2024-05-28,06 ACCOMMODATION,CHIEF FINANCIAL OFFICER,Mitie Landscapes Ltd,492658,6296.69,GB 416 706 654
BEIS,Met Office,2024-05-28,06 ACCOMMODATION,CHIEF FINANCIAL OFFICER,Mitie Landscapes Ltd,492707,6790.51,GB 416 706 654
BEIS,Met Office,2024-05-03,11 SERVICES,CHIEF FINANCIAL OFFICER,MITIE SECURITY LTD,491966,15436.87,416706654
BEIS,Met Office,2024-05-28,06 ACCOMMODATION,CHIEF FINANCIAL OFFICER,MONCKTON PROPERTIES LIMITED,492725,1280,186328677
BEIS,Met Office,2024-05-07,06 ACCOMMODATION,CHIEF FINANCIAL OFFICER,MOUNT CHARLES GROUP LTD,492052,619.71,517116274
BEIS,Met Office,2024-05-28,13 MISCELLANEOUS,CHIEF FINANCIAL OFFICER,NORSCOTT VENDING SERVICES LTD,492684,45,751402071
BEIS,Met Office,2024-05-08,13 MISCELLANEOUS,CHIEF FINANCIAL OFFICER,NORSCOTT VENDING SERVICES LTD,492138,85,751402071
BEIS,Met Office,2024-05-10,13 MISCELLANEOUS,CHIEF FINANCIAL OFFICER,NORSK GLOBAL,492183,-341,GB635843324
BEIS,Met Office,2024-05-31,13 MISCELLANEOUS,CHIEF FINANCIAL OFFICER,NORSK GLOBAL,492746,-45,GB635843324
BEIS,Met Office,2024-05-14,13 MISCELLANEOUS,CHIEF FINANCIAL OFFICER,NORSK GLOBAL,492264,0,GB635843324
BEIS,Met Office,2024-05-15,13 MISCELLANEOUS,CHIEF FINANCIAL OFFICER,NORSK GLOBAL,492370,0,GB635843324
BEIS,Met Office,2024-05-28,13 MISCELLANEOUS,CHIEF FINANCIAL OFFICER,NORSK GLOBAL,492706,0,GB635843324
BEIS,Met Office,2024-05-01,13 MISCELLANEOUS,CHIEF FINANCIAL OFFICER,NORSK GLOBAL,491812,3.74,GB635843324
BEIS,Met Office,2024-05-28,13 MISCELLANEOUS,CHIEF FINANCIAL OFFICER,NORSK GLOBAL,492737,19.16,GB635843324
BEIS,Met Office,2024-05-10,13 MISCELLANEOUS,CHIEF FINANCIAL OFFICER,NORSK GLOBAL,492202,23.47,GB635843324
BEIS,Met Office,2024-05-10,13 MISCELLANEOUS,CHIEF FINANCIAL OFFICER,NORSK GLOBAL,492102,234.6,GB635843324
BEIS,Met Office,2024-05-10,13 MISCELLANEOUS,CHIEF FINANCIAL OFFICER,NORSK GLOBAL,492103,607.2,GB635843324
BEIS,Met Office,2024-05-28,13 MISCELLANEOUS,CHIEF FINANCIAL OFFICER,NORSK GLOBAL,492706,728.92,GB635843324
BEIS,Met Office,2024-05-15,13 MISCELLANEOUS,CHIEF FINANCIAL OFFICER,NORSK GLOBAL,492370,821.32,GB635843324
BEIS,Met Office,2024-05-14,13 MISCELLANEOUS,CHIEF FINANCIAL OFFICER,NORSK GLOBAL,492264,1079.07,GB635843324
BEIS,Met Office,2024-05-31,13 MISCELLANEOUS,CHIEF FINANCIAL OFFICER,NORSK GLOBAL,492876,1251.58,GB635843324
BEIS,Met Office,2024-05-16,13 MISCELLANEOUS,CHIEF FINANCIAL OFFICER,NORSK GLOBAL,492467,1808.36,GB635843324
BEIS,Met Office,2024-05-21,06 ACCOMMODATION,CHIEF FINANCIAL OFFICER,OUR LADY OF BETHLEHEM ABBEY,492524,500,-
BEIS,Met Office,2024-05-10,13 MISCELLANEOUS,CHIEF FINANCIAL OFFICER,Parcelforce,492160,20.2,GB 243 1700 02
BEIS,Met Office,2024-05-31,13 MISCELLANEOUS,CHIEF FINANCIAL OFFICER,Parcelforce,492812,69.65,GB 243 1700 02
BEIS,Met Office,2024-05-31,13 MISCELLANEOUS,CHIEF FINANCIAL OFFICER,Parcelforce,492811,79.84,GB 243 1700 02
BEIS,Met Office,2024-05-03,13 MISCELLANEOUS,CHIEF FINANCIAL OFFICER,Parcelforce,491995,95.1,GB 243 1700 02
BEIS,Met Office,2024-05-03,13 MISCELLANEOUS,CHIEF FINANCIAL OFFICER,Parcelforce,491994,146.75,GB 243 1700 02
BEIS,Met Office,2024-05-21,13 MISCELLANEOUS,CHIEF FINANCIAL OFFICER,Parcelforce,492471,223,GB 243 1700 02
BEIS,Met Office,2024-05-21,06 ACCOMMODATION,CHIEF FINANCIAL OFFICER,PAUL BAIRD,492521,1846.37,251954452
BEIS,Met Office,2024-05-24,13 MISCELLANEOUS,CHIEF FINANCIAL OFFICER,POSTURITE (UK) LTD,492625,58.42,583565114
BEIS,Met Office,2024-05-03,06 ACCOMMODATION,CHIEF FINANCIAL OFFICER,POWER NI ENERGY LTD,492039,685.14,617518142
BEIS,Met Office,2024-05-31,13 MISCELLANEOUS,CHIEF FINANCIAL OFFICER,POWER PACKING EXPORT SERVICE,492808,150,249 7326 31
BEIS,Met Office,2024-05-31,13 MISCELLANEOUS,CHIEF FINANCIAL OFFICER,POWER PACKING EXPORT SERVICE,492799,183.85,249 7326 31
BEIS,Met Office,2024-05-01,13 MISCELLANEOUS,CHIEF FINANCIAL OFFICER,POWER PACKING EXPORT SERVICE,491839,209,249 7326 31
BEIS,Met Office,2024-05-31,13 MISCELLANEOUS,CHIEF FINANCIAL OFFICER,POWER PACKING EXPORT SERVICE,492798,377,249 7326 31
BEIS,Met Office,2024-05-10,03 STAFF COSTS T&S,CHIEF FINANCIAL OFFICER,RAINBOW CITY TAXIS,492258,33.63,724295039
BEIS,Met Office,2024-05-28,03 STAFF COSTS T&S,CHIEF FINANCIAL OFFICER,RAINBOW CITY TAXIS,492774,54.75,724295039
BEIS,Met Office,2024-05-21,06 ACCOMMODATION,CHIEF FINANCIAL OFFICER,RAINBOW OFFICE DESIGN LTD,492506,1682,769523587
BEIS,Met Office,2024-05-31,06 ACCOMMODATION,CHIEF FINANCIAL OFFICER,RAINBOW OFFICE DESIGN LTD,492838,3225,769523587
BEIS,Met Office,2024-05-23,11 SERVICES,CHIEF FINANCIAL OFFICER,REDACTED � PERSONAL DATA,491902,126,729159704
BEIS,Met Office,2024-05-21,06 ACCOMMODATION,CHIEF FINANCIAL OFFICER,REDACTED � PERSONAL DATA,492523,200,-
BEIS,Met Office,2024-05-01,06 ACCOMMODATION,CHIEF FINANCIAL OFFICER,REDACTED � PERSONAL DATA,491384,520,-
BEIS,Met Office,2024-05-22,06 ACCOMMODATION,CHIEF FINANCIAL OFFICER,REDACTED � PERSONAL DATA,492093,520,-
BEIS,Met Office,2024-05-31,11 SERVICES,CHIEF FINANCIAL OFFICER,REDACTED � PERSONAL DATA,492861,550,-
BEIS,Met Office,2024-05-20,06 ACCOMMODATION,CHIEF FINANCIAL OFFICER,REDACTED � PERSONAL DATA,492519,1393.3,-
BEIS,Met Office,2024-05-28,13 MISCELLANEOUS,CHIEF FINANCIAL OFFICER,RICHARD JAMES INTERNATIONAL LIMITED,492043,235.95,567 5529 01
BEIS,Met Office,2024-05-31,13 MISCELLANEOUS,CHIEF FINANCIAL OFFICER,RICHARD JAMES INTERNATIONAL LIMITED,492872,585.79,567 5529 01
BEIS,Met Office,2024-05-17,06 ACCOMMODATION,CHIEF FINANCIAL OFFICER,RIVER RIDGE,492443,50,176286083
BEIS,Met Office,2024-05-15,06 ACCOMMODATION,CHIEF FINANCIAL OFFICER,ROSS-ON-WYE-TOWN COUNCIL,492419,380,447 1629 81
BEIS,Met Office,2024-05-14,06 ACCOMMODATION,CHIEF FINANCIAL OFFICER,SAFESTORE LTD,492341,2484.11,722887607
BEIS,Met Office,2024-05-28,06 ACCOMMODATION,CHIEF FINANCIAL OFFICER,Scottish Government,492641,-22094,888842551
BEIS,Met Office,2024-05-28,06 ACCOMMODATION,CHIEF FINANCIAL OFFICER,Scottish Government,488666,25969,888842551
BEIS,Met Office,2024-05-21,06 ACCOMMODATION,CHIEF FINANCIAL OFFICER,Scottish Natural Heritage,492522,200,553740540
BEIS,Met Office,2024-05-31,06 ACCOMMODATION,CHIEF FINANCIAL OFFICER,Severn Trent Water Ltd,492805,288.08,486985565
BEIS,Met Office,2024-05-10,06 ACCOMMODATION,CHIEF FINANCIAL OFFICER,SHETLAND CLEANING SERVICES,492238,897.62,430028404
BEIS,Met Office,2024-05-16,06 ACCOMMODATION,CHIEF FINANCIAL OFFICER,SIMEC LOCHABER HYDROPOWER 2 LTD,491858,750,336173953
BEIS,Met Office,2024-05-20,06 ACCOMMODATION,CHIEF FINANCIAL OFFICER,South West Water Ltd,491818,-9220.09,236873674
BEIS,Met Office,2024-05-20,06 ACCOMMODATION,CHIEF FINANCIAL OFFICER,South West Water Ltd,492373,57.74,236873674
BEIS,Met Office,2024-05-20,06 ACCOMMODATION,CHIEF FINANCIAL OFFICER,South West Water Ltd,491819,306.03,236873674
BEIS,Met Office,2024-05-20,06 ACCOMMODATION,CHIEF FINANCIAL OFFICER,South West Water Ltd,492472,2032.22,236873674
BEIS,Met Office,2024-05-20,06 ACCOMMODATION,CHIEF FINANCIAL OFFICER,South West Water Ltd,491817,2161.05,236873674
BEIS,Met Office,2024-05-20,06 ACCOMMODATION,CHIEF FINANCIAL OFFICER,South West Water Ltd,492290,7612.12,236873674
BEIS,Met Office,2024-05-01,06 ACCOMMODATION,CHIEF FINANCIAL OFFICER,St. Modwen Properties Limited,491345,-1.19,005489575
BEIS,Met Office,2024-05-01,06 ACCOMMODATION,CHIEF FINANCIAL OFFICER,St. Modwen Properties Limited,491900,26.54,005489575
BEIS,Met Office,2024-05-02,06 ACCOMMODATION,CHIEF FINANCIAL OFFICER,St. Modwen Properties Limited,492000,55.01,005489575
BEIS,Met Office,2024-05-31,06 ACCOMMODATION,CHIEF FINANCIAL OFFICER,St. Modwen Properties Limited,492713,112.5,005489575
BEIS,Met Office,2024-05-24,06 ACCOMMODATION,CHIEF FINANCIAL OFFICER,St. Modwen Properties Limited,492714,750,005489575
BEIS,Met Office,2024-05-29,PLANT AND EQUIPMENT,CHIEF FINANCIAL OFFICER,Stewart Morris Partnership Ltd,492615,3016.25,687720886
BEIS,Met Office,2024-05-29,PLANT AND EQUIPMENT,CHIEF FINANCIAL OFFICER,Stewart Morris Partnership Ltd,492615,10000,687720886
BEIS,Met Office,2024-05-10,11 SERVICES,CHIEF FINANCIAL OFFICER,SURE SOUTH ATLANTIC LTD,492201,2214.59,NOVATREG
BEIS,Met Office,2024-05-13,11 SERVICES,CHIEF FINANCIAL OFFICER,SURE SOUTH ATLANTIC LTD,492274,4801,-
BEIS,Met Office,2024-05-13,11 SERVICES,CHIEF FINANCIAL OFFICER,SURE SOUTH ATLANTIC LTD,492275,6478,-
BEIS,Met Office,2024-05-01,11 SERVICES,CHIEF FINANCIAL OFFICER,SWISSCOM (SCHWEIZ) AG,491285,98.26,-
BEIS,Met Office,2024-05-29,11 SERVICES,CHIEF FINANCIAL OFFICER,SWISSCOM (SCHWEIZ) AG,492285,98.61,-
BEIS,Met Office,2024-05-15,11 SERVICES,CHIEF FINANCIAL OFFICER,TELEFONICA O2 UK LIMITED,492281,3786.88,778603785
BEIS,Met Office,2024-05-22,11 SERVICES,CHIEF FINANCIAL OFFICER,TELIA FINLAND OYJ,25853,189.94,FI14756079
BEIS,Met Office,2024-05-02,06 ACCOMMODATION,CHIEF FINANCIAL OFFICER,Thames Water,491957,4200,-
BEIS,Met Office,2024-05-08,11 SERVICES,CHIEF FINANCIAL OFFICER,THE WOOLLY SHEPHERD,492095,425.05,111326371
BEIS,Met Office,2024-05-31,11 SERVICES,CHIEF FINANCIAL OFFICER,THE WOOLLY SHEPHERD,492822,7467.73,111326371
BEIS,Met Office,2024-05-31,11 SERVICES,CHIEF FINANCIAL OFFICER,THE WOOLLY SHEPHERD,492830,13577.73,111326371
BEIS,Met Office,2024-05-22,11 SERVICES,CHIEF FINANCIAL OFFICER,THORLUX LIGHTING,492639,818.34,GB 109 939 440
BEIS,Met Office,2024-05-01,06 ACCOMMODATION,CHIEF FINANCIAL OFFICER,TOP RANK CLEANING SERVICES LTD,491936,1102.64,-
BEIS,Met Office,2024-05-28,06 ACCOMMODATION,CHIEF FINANCIAL OFFICER,TOTAL GAS & POWER LIMITED,492575,1278.12,689638949
BEIS,Met Office,2024-05-28,06 ACCOMMODATION,CHIEF FINANCIAL OFFICER,TOTAL GAS & POWER LIMITED,492576,22200.48,689638949
BEIS,Met Office,2024-05-02,11 SERVICES,CHIEF FINANCIAL OFFICER,TTC Commercial Services Limited,491998,94.55,820219467
BEIS,Met Office,2024-05-02,11 SERVICES,CHIEF FINANCIAL OFFICER,TTC Commercial Services Limited,491998,344.77,820219467
BEIS,Met Office,2024-05-01,06 ACCOMMODATION,CHIEF FINANCIAL OFFICER,UNIVERSAL CLEANING SERVICES,491935,207.15,-
BEIS,Met Office,2024-05-28,13 MISCELLANEOUS,CHIEF FINANCIAL OFFICER,University Of Reading,492738,10.38,200012659
BEIS,Met Office,2024-05-20,06 ACCOMMODATION,CHIEF FINANCIAL OFFICER,V & M MORRIS AND SON,492517,1000.5,-
BEIS,Met Office,2024-05-01,11 SERVICES,CHIEF FINANCIAL OFFICER,Vodafone Limited,491908,10.21,569953277
BEIS,Met Office,2024-05-01,11 SERVICES,CHIEF FINANCIAL OFFICER,Vodafone Limited,491909,287.57,569953277
BEIS,Met Office,2024-05-01,11 SERVICES,CHIEF FINANCIAL OFFICER,Vodafone Limited,491911,321.84,569953277
BEIS,Met Office,2024-05-01,11 SERVICES,CHIEF FINANCIAL OFFICER,Vodafone Ltd,491910,37.5,569953277
BEIS,Met Office,2024-05-10,11 SERVICES,CHIEF FINANCIAL OFFICER,WEBEX COMMUNICATIONS UK LTD,492256,209.92,815974302
BEIS,Met Office,2024-05-31,11 SERVICES,CHIEF FINANCIAL OFFICER,WEBEX COMMUNICATIONS UK LTD,492773,209.92,815974302
BEIS,Met Office,2024-05-28,06 ACCOMMODATION,CHIEF FINANCIAL OFFICER,WEST LANCASHIRE BOROUGH COUNCIL,492679,138.77,-
BEIS,Met Office,2024-05-01,11 SERVICES,CHIEF FINANCIAL OFFICER,WESTEXE GROUP,491899,60,913 4460 43
BEIS,Met Office,2024-05-07,11 SERVICES,CHIEF FINANCIAL OFFICER,WESTEXE GROUP,492053,185,913 4460 43
BEIS,Met Office,2024-05-10,11 SERVICES,CHIEF FINANCIAL OFFICER,WESTFIELD HEALTH & WELLBEING LTD,492195,2000,229171411
BEIS,Met Office,2024-05-24,11 SERVICES,CHIEF FINANCIAL OFFICER,WOMBLE BOND DICKINSON (UK) LLP,492705,15750,GB123393627
BEIS,Met Office,2024-05-15,11 SERVICES,MARKETS,ACCELERATION EMARKETING,492342,3897.56,848940776
BEIS,Met Office,2024-05-21,11 SERVICES,MARKETS,ACHILLES INFORMATION LIMITED,492537,985,GB 663 5624 23
BEIS,Met Office,2024-05-03,11 SERVICES,MARKETS,ADOPSTAR,491962,1325,115036848
BEIS,Met Office,2024-05-10,12 INTERNATIONAL,MARKETS,APPLIED SATELLITE TECHNOLOGY SYSTEMS LTD,492234,33.42,720108683
BEIS,Met Office,2024-05-16,11 SERVICES,MARKETS,ATTENTIONAL LTD T/A OVERNIGHTS TV,492435,5438.75,570336844
BEIS,Met Office,2024-05-03,11 SERVICES,MARKETS,AUTOMATED DOCUMENT SERVICES LTD,492008,16741.39,105353449
BEIS,Met Office,2024-05-20,11 SERVICES,MARKETS,BMG RESEARCH LTD,492456,950,580 6606 32
BEIS,Met Office,2024-05-20,11 SERVICES,MARKETS,BMG RESEARCH LTD,492456,2125,580 6606 32
BEIS,Met Office,2024-05-20,11 SERVICES,MARKETS,BMG RESEARCH LTD,492456,6745,580 6606 32
BEIS,Met Office,2024-05-24,11 SERVICES,MARKETS,BMG RESEARCH LTD,492686,16000,580 6606 32
BEIS,Met Office,2024-05-07,11 SERVICES,MARKETS,DJS RESEARCH LIMITED,492010,18937.5,775718779
BEIS,Met Office,2024-05-20,11 SERVICES,MARKETS,DOD'S GROUP LTD,491959,7000,792067900
BEIS,Met Office,2024-05-01,11 SERVICES,MARKETS,DOMO INC,486875,-19027,-
BEIS,Met Office,2024-05-01,11 SERVICES,MARKETS,DOMO INC,489168,19027,-
BEIS,Met Office,2024-05-21,11 SERVICES,MARKETS,DYNAMIC EARTH,492505,1260,593257316
BEIS,Met Office,2024-05-08,11 SERVICES,MARKETS,Eumetsat,25812,6848.04,VE
BEIS,Met Office,2024-05-08,11 SERVICES,MARKETS,Eumetsat,25813,6848.04,VE
BEIS,Met Office,2024-05-22,11 SERVICES,MARKETS,FCDO,472431,3436.56,888813560
BEIS,Met Office,2024-05-31,03 STAFF COSTS T&S,MARKETS,HCR LTD,489094,385,733 7205 46
BEIS,Met Office,2024-05-22,11 SERVICES,MARKETS,"IBL SOFTWARE ENGINEERING, SPOL S.R.O.",491691,1963.5,SK2020241883
BEIS,Met Office,2024-05-08,08 SOFTWARE LICENCES,MARKETS,"IBL SOFTWARE ENGINEERING, SPOL S.R.O.",25821,1531416.89,SK2020241883
BEIS,Met Office,2024-05-03,11 SERVICES,MARKETS,INMARSAT SOLUTIONS (CANADA) INC,492016,1860.55,766144223
BEIS,Met Office,2024-05-08,11 SERVICES,MARKETS,MADE TECH,492164,9625,938565184
BEIS,Met Office,2024-05-08,11 SERVICES,MARKETS,National Oceanography Centre,492108,299898.9,GB 338 5487 64
BEIS,Met Office,2024-05-15,11 SERVICES,MARKETS,NSSL GLOBAL LTD,11503,47.59,725151948
BEIS,Met Office,2024-05-07,11 SERVICES,MARKETS,OSBORNE CLARKE LLP,491898,4589,GB138187353
BEIS,Met Office,2024-05-01,11 SERVICES,MARKETS,QUESTBACK UK LIMITED,491893,12688.08,GB 382 9785 37
BEIS,Met Office,2024-05-01,12 INTERNATIONAL,MARKETS,REDACTED � PERSONAL DATA,11517,699.08,-
BEIS,Met Office,2024-05-01,12 INTERNATIONAL,MARKETS,REDACTED � PERSONAL DATA,11517,1045.42,-
BEIS,Met Office,2024-05-01,12 INTERNATIONAL,MARKETS,REDACTED � PERSONAL DATA,11517,1303.99,-
BEIS,Met Office,2024-05-10,11 SERVICES,MARKETS,ROWE IT LTD,492196,3123.43,924964394
BEIS,Met Office,2024-05-15,11 SERVICES,MARKETS,SAS OCEAN DATA LAB,25822,6627.62,FR51 792 395 92
BEIS,Met Office,2024-05-15,11 SERVICES,MARKETS,SAS OCEAN DATA LAB,25823,11299.27,FR51 792 395 92
BEIS,Met Office,2024-05-10,03 STAFF COSTS T&S,MARKETS,SOLOMON & COMPANY (ST HELENA) PLC,492248,37.9,-
BEIS,Met Office,2024-05-23,03 STAFF COSTS T&S,MARKETS,SOLOMON & COMPANY (ST HELENA) PLC,492644,200,-
BEIS,Met Office,2024-05-10,11 SERVICES,MARKETS,SPOKE (INTERACTIVE) LTD,492182,770,840156451
BEIS,Met Office,2024-05-14,06 ACCOMMODATION,MARKETS,SSE ENERGY SUPPLY LIMITED T/A,489258,232.24,553769603
BEIS,Met Office,2024-05-14,11 SERVICES,MARKETS,SWANTECH LOGISTICS LTD,492337,3572.04,769332401
BEIS,Met Office,2024-05-01,12 INTERNATIONAL,MARKETS,TOTEX CORPORATION,491318,22.3,-
BEIS,Met Office,2024-05-01,12 INTERNATIONAL,MARKETS,TOTEX CORPORATION,491318,960,-
BEIS,Met Office,2024-05-01,12 INTERNATIONAL,MARKETS,TOTEX CORPORATION,491318,3560,-
BEIS,Met Office,2024-05-29,11 SERVICES,MARKETS,University Of Exeter,492731,22797,142047795
BEIS,Met Office,2024-05-07,11 SERVICES,MARKETS,WESTPOINT CENTRE (DEVON) LTD,492040,549,585 6015 25
BEIS,Met Office,2024-05-07,11 SERVICES,MARKETS,WESTPOINT CENTRE (DEVON) LTD,492040,1398.25,585 6015 25
BEIS,Met Office,2024-05-08,11 SERVICES,MARKETS,WORLDPAY (UK) LTD,492159,680.59,991280207
BEIS,Met Office,2024-05-03,11 SERVICES,MARKETS,WORLDPAY LTD,492006,26.05,991280207
BEIS,Met Office,2024-05-22,11 SERVICES,MARKETS,WORLDPAY LTD,492092,26.35,991280207
BEIS,Met Office,2024-05-08,11 SERVICES,MARKETS,YOUGOV PLC,492142,7150,991228109
BEIS,Met Office,2024-05-20,11 SERVICES,OFFICE OF THE CEO,ADDLESHAW GODDARD LLP,492490,13050,100135687
BEIS,Met Office,2024-05-28,11 SERVICES,OFFICE OF THE CEO,BITPOD LIMITED,492687,4085.32,124 9359 03
BEIS,Met Office,2024-05-16,11 SERVICES,OFFICE OF THE CEO,ESCOTT HUNT LTD,492374,190,815727127
BEIS,Met Office,2024-05-28,11 SERVICES,OFFICE OF THE CEO,Government Legal Department,492570,415.8,888823066
BEIS,Met Office,2024-05-28,11 SERVICES,OFFICE OF THE CEO,Government Legal Department,492571,586.8,888823066
BEIS,Met Office,2024-05-10,11 SERVICES,OFFICE OF THE CEO,University Of Reading,491907,2934.48,200012659
BEIS,Met Office,2024-05-02,13 MISCELLANEOUS,OFFICE OF THE CS & TECH,Imperial College,491797,3500,649926678
BEIS,Met Office,2024-05-08,13 MISCELLANEOUS,OFFICE OF THE CS & TECH,University Of Oxford,492101,333.33,125506730
BEIS,Met Office,2024-05-22,TRADE CREDITORS,OTHER,NATWEST COMMERCIAL CARDS DIVISION,492515,148303.69,N/A
BEIS,Met Office,2024-05-17,11 SERVICES,PEOPLE,ACTIVE LEARNING TEAM LTD,492424,700,GB454401319
BEIS,Met Office,2024-05-21,13 MISCELLANEOUS,PEOPLE,BROADBEAN TECHNOLOGY LTD,492582,-2016.29,GB184088778
BEIS,Met Office,2024-05-21,13 MISCELLANEOUS,PEOPLE,BROADBEAN TECHNOLOGY LTD,473107,2016.29,GB184088778
BEIS,Met Office,2024-05-02,11 SERVICES,PEOPLE,BUSINESS DISABILITY FORUM,491922,4400,GB645620736
BEIS,Met Office,2024-05-31,13 MISCELLANEOUS,PEOPLE,CABINET OFFICE - COF LEAD ACCOUNT,492796,22059.7,-
BEIS,Met Office,2024-05-02,08 SOFTWARE LICENCES,PEOPLE,CATALYST IT,491997,17145.82,978169262
BEIS,Met Office,2024-05-31,11 SERVICES,PEOPLE,CIPHR,492889,8750,242661124
BEIS,Met Office,2024-05-31,08 SOFTWARE LICENCES,PEOPLE,CIPHR,492889,51527.5,242661124
BEIS,Met Office,2024-05-22,11 SERVICES,PEOPLE,CIVICA UK LIMITED,492609,7503.5,391171065
BEIS,Met Office,2024-05-16,11 SERVICES,PEOPLE,Exeter College,492464,3750,125451632
BEIS,Met Office,2024-05-01,11 SERVICES,PEOPLE,HEALTH ASSURED LIMITED,491759,1120,927 5242 17
BEIS,Met Office,2024-05-08,11 SERVICES,PEOPLE,HEALTH ASSURED LIMITED,492051,1120,927 5242 17
BEIS,Met Office,2024-05-23,13 MISCELLANEOUS,PEOPLE,LNRS DATA SERVICES LTD,492685,12755,730859520
BEIS,Met Office,2024-05-16,04 CONTRACTORS,PEOPLE,MATRIX SCM LIMITED,492458,50125.18,249 5734 68
BEIS,Met Office,2024-05-16,04 CONTRACTORS,PEOPLE,MATRIX SCM LIMITED,492458,132831.92,249 5734 68
BEIS,Met Office,2024-05-31,04 CONTRACTORS,PEOPLE,MATRIX SCM LIMITED,492862,196175.91,249 5734 68
BEIS,Met Office,2024-05-23,04 CONTRACTORS,PEOPLE,MATRIX SCM LIMITED,492660,220330.66,249 5734 68
BEIS,Met Office,2024-05-10,04 CONTRACTORS,PEOPLE,MATRIX SCM LIMITED,492239,237793.23,249 5734 68
BEIS,Met Office,2024-05-02,04 CONTRACTORS,PEOPLE,MATRIX SCM LIMITED,492001,266104.32,249 5734 68
BEIS,Met Office,2024-05-29,11 SERVICES,PEOPLE,PLURALSIGHT,11521,124.22,EU826020045
BEIS,Met Office,2024-05-15,11 SERVICES,PEOPLE,PLURALSIGHT,11514,428.08,EU826020045
BEIS,Met Office,2024-05-08,11 SERVICES,PEOPLE,REDACTED � PERSONAL DATA,492083,157.5,143043312
BEIS,Met Office,2024-05-08,11 SERVICES,PEOPLE,REDACTED � PERSONAL DATA,492084,252,143043312
BEIS,Met Office,2024-05-08,11 SERVICES,PEOPLE,REDACTED � PERSONAL DATA,492085,825,143043312
BEIS,Met Office,2024-05-08,11 SERVICES,PEOPLE,REDACTED � PERSONAL DATA,492086,2535.3,143043312
BEIS,Met Office,2024-05-08,11 SERVICES,PEOPLE,REDACTED � PERSONAL DATA,492082,11624,143043312
BEIS,Met Office,2024-05-14,11 SERVICES,PEOPLE,RESTORE RECORDS MANAGEMENT,492260,13.89,843 863011
BEIS,Met Office,2024-05-17,11 SERVICES,PEOPLE,RESULTS CATALYSTS LTD,492457,1200,811 9181 42
BEIS,Met Office,2024-05-07,13 MISCELLANEOUS,PEOPLE,Reward Gateway (UK) Ltd,491544,-1686.4,649 503 520
BEIS,Met Office,2024-05-07,13 MISCELLANEOUS,PEOPLE,Reward Gateway (UK) Ltd,491545,-302.63,649 503 520
BEIS,Met Office,2024-05-07,13 MISCELLANEOUS,PEOPLE,Reward Gateway (UK) Ltd,491924,310,649 503 520
BEIS,Met Office,2024-05-07,13 MISCELLANEOUS,PEOPLE,Reward Gateway (UK) Ltd,492044,7338.5,649 503 520
BEIS,Met Office,2024-05-03,13 MISCELLANEOUS,PEOPLE,Reward Gateway (UK) Ltd,491905,117890,649 503 520
BEIS,Met Office,2024-05-21,11 SERVICES,PEOPLE,SKILLTEC LIMITED,489651,5830,909833105
BEIS,Met Office,2024-05-31,11 SERVICES,PEOPLE,TP HEALTH LTD,492867,217.1,883064608
BEIS,Met Office,2024-05-10,11 SERVICES,PEOPLE,TP HEALTH LTD,492241,2179,883064608
BEIS,Met Office,2024-05-21,11 SERVICES,PEOPLE,TRAINING BYTESIZE LIMITED,491626,1599,901277743
BEIS,Met Office,2024-05-08,13 MISCELLANEOUS,PEOPLE,YOTI LTD,492109,49.5,GB199947617
BEIS,Met Office,2024-05-14,11 SERVICES,PEOPLE,YOUGOV PLC,492143,4530,991228109
BEIS,Met Office,2024-05-01,11 SERVICES,PROGRAMMES,4 C ASSOCIATES,490638,5951.33,GB 152 6884 87
BEIS,Met Office,2024-05-07,11 SERVICES,PROGRAMMES,BAE SYSTEMS APPLIED INTELLIGENCE LIMITED,491770,541.12,GB641407169
BEIS,Met Office,2024-05-08,11 SERVICES,PROGRAMMES,BAE SYSTEMS APPLIED INTELLIGENCE LIMITED,492133,841.75,GB641407169
BEIS,Met Office,2024-05-23,11 SERVICES,PROGRAMMES,BAE SYSTEMS APPLIED INTELLIGENCE LIMITED,492681,9350,GB641407169
BEIS,Met Office,2024-05-10,11 SERVICES,PROGRAMMES,BAE SYSTEMS APPLIED INTELLIGENCE LIMITED,492184,12381.6,GB641407169
BEIS,Met Office,2024-05-02,11 SERVICES,PROGRAMMES,BAE SYSTEMS APPLIED INTELLIGENCE LIMITED,491795,14025,GB641407169
BEIS,Met Office,2024-05-02,11 SERVICES,PROGRAMMES,BAE SYSTEMS APPLIED INTELLIGENCE LIMITED,491931,14685,GB641407169
BEIS,Met Office,2024-05-02,11 SERVICES,PROGRAMMES,BAE SYSTEMS APPLIED INTELLIGENCE LIMITED,491931,17001.25,GB641407169
BEIS,Met Office,2024-05-08,11 SERVICES,PROGRAMMES,BAE SYSTEMS APPLIED INTELLIGENCE LIMITED,492054,18466.5,GB641407169
BEIS,Met Office,2024-05-02,11 SERVICES,PROGRAMMES,BAE SYSTEMS APPLIED INTELLIGENCE LIMITED,491931,21574,GB641407169
BEIS,Met Office,2024-05-02,11 SERVICES,PROGRAMMES,BAE SYSTEMS APPLIED INTELLIGENCE LIMITED,491931,21925.75,GB641407169
BEIS,Met Office,2024-05-02,11 SERVICES,PROGRAMMES,BAE SYSTEMS APPLIED INTELLIGENCE LIMITED,491931,22512,GB641407169
BEIS,Met Office,2024-05-02,11 SERVICES,PROGRAMMES,BAE SYSTEMS APPLIED INTELLIGENCE LIMITED,491931,27912,GB641407169
BEIS,Met Office,2024-05-07,11 SERVICES,PROGRAMMES,BAE SYSTEMS APPLIED INTELLIGENCE LIMITED,492055,70020.63,GB641407169
BEIS,Met Office,2024-05-31,11 SERVICES,PROGRAMMES,BAE SYSTEMS APPLIED INTELLIGENCE LIMITED,492875,73428.31,GB641407169
BEIS,Met Office,2024-05-14,11 SERVICES,PROGRAMMES,BJSS LIMITED,492269,1308.75,613295452
BEIS,Met Office,2024-05-10,11 SERVICES,PROGRAMMES,BJSS LIMITED,492200,3950,613295452
BEIS,Met Office,2024-05-13,11 SERVICES,PROGRAMMES,BJSS LIMITED,492270,7500,613295452
BEIS,Met Office,2024-05-14,11 SERVICES,PROGRAMMES,BJSS LIMITED,492332,21875,613295452
BEIS,Met Office,2024-05-10,11 SERVICES,PROGRAMMES,BJSS LIMITED,492198,26725,613295452
BEIS,Met Office,2024-05-10,11 SERVICES,PROGRAMMES,BJSS LIMITED,492199,58200,613295452
BEIS,Met Office,2024-05-10,11 SERVICES,PROGRAMMES,BJSS LIMITED,492262,88435,613295452
BEIS,Met Office,2024-05-14,11 SERVICES,PROGRAMMES,BJSS LIMITED,492269,158466.25,613295452
BEIS,Met Office,2024-05-01,08 SOFTWARE LICENCES,PROGRAMMES,BROWSERSTACK INC,11481,8091.95,381 5726 79
BEIS,Met Office,2024-05-15,06 ACCOMMODATION,PROGRAMMES,CALOR GAS LIMITED,492345,470.39,207610984
BEIS,Met Office,2024-05-01,06 ACCOMMODATION,PROGRAMMES,CARDIFF EXECUTIVE CENTRE LTD,491923,100,864497378
BEIS,Met Office,2024-05-01,11 SERVICES,PROGRAMMES,CENTRO INTERNACIONAL DE AGRICULTURA TROPICAL,491690,125962.68,na
BEIS,Met Office,2024-05-22,11 SERVICES,PROGRAMMES,Cgi It Uk Limited,491671,-254627,232615194
BEIS,Met Office,2024-05-22,11 SERVICES,PROGRAMMES,Cgi It Uk Limited,491673,-88084,232615194
BEIS,Met Office,2024-05-22,11 SERVICES,PROGRAMMES,Cgi It Uk Limited,491672,-84259,232615194
BEIS,Met Office,2024-05-13,11 SERVICES,PROGRAMMES,Cgi It Uk Limited,492150,28588,232615194
BEIS,Met Office,2024-05-13,11 SERVICES,PROGRAMMES,Cgi It Uk Limited,492151,37693,232615194
BEIS,Met Office,2024-05-13,11 SERVICES,PROGRAMMES,Cgi It Uk Limited,492149,79239,232615194
BEIS,Met Office,2024-05-22,11 SERVICES,PROGRAMMES,Cgi It Uk Limited,490747,84259,232615194
BEIS,Met Office,2024-05-22,11 SERVICES,PROGRAMMES,Cgi It Uk Limited,490746,88084,232615194
BEIS,Met Office,2024-05-22,11 SERVICES,PROGRAMMES,Cgi It Uk Limited,490748,254627,232615194
BEIS,Met Office,2024-05-08,11 SERVICES,PROGRAMMES,DELOITTE LLP LIMITED,490567,96597.77,GB809707706
BEIS,Met Office,2024-05-08,06 ACCOMMODATION,PROGRAMMES,ENVIRONMENT AGENCY RECEIPTS,492162,610,662490134
BEIS,Met Office,2024-05-21,11 SERVICES,PROGRAMMES,FCDO,492573,1330.58,888813560
BEIS,Met Office,2024-05-20,11 SERVICES,PROGRAMMES,HOGAN LOVELLS INTERNATIONAL LLP,492530,4529.11,GB123371543
BEIS,Met Office,2024-05-20,11 SERVICES,PROGRAMMES,HOGAN LOVELLS INTERNATIONAL LLP,492529,5361.75,GB123371543
BEIS,Met Office,2024-05-03,11 SERVICES,PROGRAMMES,Ibm United Kingdom Ltd,491930,13440.5,107328000
BEIS,Met Office,2024-05-08,11 SERVICES,PROGRAMMES,"K F LEWIN CONSULTING, LLC",11494,16883.6,-
BEIS,Met Office,2024-05-03,11 SERVICES,PROGRAMMES,LUTRA CONSULTING,491901,5250,142463822
BEIS,Met Office,2024-05-15,11 SERVICES,PROGRAMMES,MONGODB LTD,491594,6999.21,IE9793087U
BEIS,Met Office,2024-05-21,11 SERVICES,PROGRAMMES,MOORE STEPHENS INSIGHT LIMITED,492511,64500,GB128794671
BEIS,Met Office,2024-05-01,13 MISCELLANEOUS,PROGRAMMES,NORFOLK WATER LIMITED,491932,72.05,833 6292 22
BEIS,Met Office,2024-05-08,13 MISCELLANEOUS,PROGRAMMES,NORSCOTT VENDING SERVICES LTD,491704,-7.5,751402071
BEIS,Met Office,2024-05-20,11 SERVICES,PROGRAMMES,Npl Management Ltd,492510,15000,207523388
BEIS,Met Office,2024-05-08,08 SOFTWARE LICENCES,PROGRAMMES,OPEN POLICY LIMITED (TRADING AS OVERTON),492110,4372,GB34507119
BEIS,Met Office,2024-05-07,11 SERVICES,PROGRAMMES,RAINMAKER SOLUTIONS LTD,491933,49850,-
BEIS,Met Office,2024-05-07,11 SERVICES,PROGRAMMES,Red Oak Consulting LLP,491984,4120,807766990
BEIS,Met Office,2024-05-07,11 SERVICES,PROGRAMMES,Red Oak Consulting LLP,492042,6180,807766990
BEIS,Met Office,2024-05-10,11 SERVICES,PROGRAMMES,RESURGENCE URBAN RESILIENCE TRUST,492177,57659,259524184
BEIS,Met Office,2024-05-08,11 SERVICES,PROGRAMMES,RIMES,11493,20790.26,-
BEIS,Met Office,2024-05-08,11 SERVICES,PROGRAMMES,RIMES,11497,23037.19,-
BEIS,Met Office,2024-05-10,06 ACCOMMODATION,PROGRAMMES,RIVER RIDGE,492247,140.02,176286083
BEIS,Met Office,2024-05-10,11 SERVICES,PROGRAMMES,ROWE IT LTD,492196,1561.72,924964394
BEIS,Met Office,2024-05-10,11 SERVICES,PROGRAMMES,ROWE IT LTD,492196,6246.86,924964394
BEIS,Met Office,2024-05-10,11 SERVICES,PROGRAMMES,ROWE IT LTD,492196,7808.58,924964394
BEIS,Met Office,2024-05-10,11 SERVICES,PROGRAMMES,ROWE IT LTD,492196,12493.72,924964394
BEIS,Met Office,2024-05-10,11 SERVICES,PROGRAMMES,ROWE IT LTD,492196,17178.87,924964394
BEIS,Met Office,2024-05-10,11 SERVICES,PROGRAMMES,ROWE IT LTD,492196,18740.58,924964394
BEIS,Met Office,2024-05-10,11 SERVICES,PROGRAMMES,ROWE IT LTD,492196,42166.31,924964394
BEIS,Met Office,2024-05-10,11 SERVICES,PROGRAMMES,ROWE IT LTD,492196,46851.45,924964394
BEIS,Met Office,2024-05-07,11 SERVICES,PROGRAMMES,SCIENCE & TECHNOLOGY FACILITIES COUNCIL,492056,9444.96,287461957
BEIS,Met Office,2024-05-15,11 SERVICES,PROGRAMMES,SOUTH AFRICAN WEATHER SERVICES,492336,12403,-
BEIS,Met Office,2024-05-01,11 SERVICES,PROGRAMMES,SOUTH AFRICAN WEATHER SERVICES,491597,200000,-
BEIS,Met Office,2024-05-28,08 SOFTWARE LICENCES,PROGRAMMES,SPECIALIST COMPUTER CENTRES,492680,10253,313651680
BEIS,Met Office,2024-05-08,11 SERVICES,PROGRAMMES,SPREP,11524,30185.59,-
BEIS,Met Office,2024-05-01,11 SERVICES,PROGRAMMES,Tanzania Meteorological Agency,491461,10125,-
BEIS,Met Office,2024-05-29,11 SERVICES,PROGRAMMES,UCAR INCOMING PAYMENTS,11527,8129.75,-
BEIS,Met Office,2024-05-15,11 SERVICES,PROGRAMMES,UCAR INCOMING PAYMENTS,11510,254254.06,-
BEIS,Met Office,2024-05-07,11 SERVICES,PROGRAMMES,UK ATOMIC ENERGY AUTHORITY,489483,-13981.94,GB570101391
BEIS,Met Office,2024-05-07,11 SERVICES,PROGRAMMES,UK ATOMIC ENERGY AUTHORITY,490483,-13981.94,GB570101391
BEIS,Met Office,2024-05-07,11 SERVICES,PROGRAMMES,UK ATOMIC ENERGY AUTHORITY,490484,-13981.94,GB570101391
BEIS,Met Office,2024-05-07,11 SERVICES,PROGRAMMES,UK ATOMIC ENERGY AUTHORITY,490485,-37,GB570101391
BEIS,Met Office,2024-05-07,11 SERVICES,PROGRAMMES,UK ATOMIC ENERGY AUTHORITY,489825,74,GB570101391
BEIS,Met Office,2024-05-07,11 SERVICES,PROGRAMMES,UK ATOMIC ENERGY AUTHORITY,490156,25291.7,GB570101391
BEIS,Met Office,2024-05-07,11 SERVICES,PROGRAMMES,UK ATOMIC ENERGY AUTHORITY,490156,82626.06,GB570101391
BEIS,Met Office,2024-05-14,11 SERVICES,PROGRAMMES,University Of Cambridge,492348,-38238,214222124
BEIS,Met Office,2024-05-14,11 SERVICES,PROGRAMMES,University Of Cambridge,492347,-38077,214222124
BEIS,Met Office,2024-05-14,11 SERVICES,PROGRAMMES,University Of Cambridge,487697,38077,214222124
BEIS,Met Office,2024-05-14,11 SERVICES,PROGRAMMES,University Of Cambridge,491990,38238,214222124
BEIS,Met Office,2024-05-14,11 SERVICES,PROGRAMMES,University Of Cambridge,492346,43335,214222124
BEIS,Met Office,2024-05-15,11 SERVICES,PROGRAMMES,University Of Exeter,492392,74997,142047795
BEIS,Met Office,2024-05-13,11 SERVICES,PROGRAMMES,University Of Leeds,492331,12500,613451470
BEIS,Met Office,2024-05-10,11 SERVICES,PROGRAMMES,University Of Leeds,492240,60000,613451470
BEIS,Met Office,2024-05-08,07 EQUIPMENT,PROGRAMMES,VAISALA LTD,25832,3020.58,336100011
BEIS,Met Office,2024-05-31,11 SERVICES,SCIENCE,EXETER RUGBY CLUB LTD,492724,2177.08,918551313
BEIS,Met Office,2024-05-03,11 SERVICES,SCIENCE,HITACHI CAPITAL VEHICLE SOLUTIONS,492012,3387.36,GB 823 8248 22
BEIS,Met Office,2024-05-22,11 SERVICES,SERVICES,ACTIVE LEARNING TEAM LTD,492507,1600,GB454401319
BEIS,Met Office,2024-05-20,03 STAFF COSTS T&S,SERVICES,AIRPORT CAR RENTALS LTD,492526,478,-
BEIS,Met Office,2024-05-14,07 EQUIPMENT,SERVICES,AM LOGISTICS LTD,492416,-650,801103503
BEIS,Met Office,2024-05-14,07 EQUIPMENT,SERVICES,AM LOGISTICS LTD,437848,650,801103503
BEIS,Met Office,2024-05-10,11 SERVICES,SERVICES,APPLIED SATELLITE TECHNOLOGY SYSTEMS LTD,492236,33.42,720108683
BEIS,Met Office,2024-05-10,11 SERVICES,SERVICES,APPLIED SATELLITE TECHNOLOGY SYSTEMS LTD,492233,66.83,720108683
BEIS,Met Office,2024-05-10,11 SERVICES,SERVICES,APPLIED SATELLITE TECHNOLOGY SYSTEMS LTD,492235,66.83,720108683
BEIS,Met Office,2024-05-22,03 STAFF COSTS T&S,SERVICES,AVIS BUDGET PAYLESS,25834,458.39,-
BEIS,Met Office,2024-05-22,03 STAFF COSTS T&S,SERVICES,AVIS BUDGET PAYLESS,25835,458.39,-
BEIS,Met Office,2024-05-22,03 STAFF COSTS T&S,SERVICES,AVIS BUDGET PAYLESS,25833,916.78,-
BEIS,Met Office,2024-05-08,07 EQUIPMENT,SERVICES,BANNER GROUP LIMITED,492100,13.55,GB391085740
BEIS,Met Office,2024-05-08,11 SERVICES,SERVICES,BENTLEY TELECOM LTD (was Bentley Walker),492152,525,107995930
BEIS,Met Office,2024-05-02,11 SERVICES,SERVICES,Boc Ltd,491958,8253.15,226556555
BEIS,Met Office,2024-05-24,11 SERVICES,SERVICES,BRYERS LLP,492614,0,609635917
BEIS,Met Office,2024-05-24,11 SERVICES,SERVICES,BRYERS LLP,492614,130,609635917
BEIS,Met Office,2024-05-24,11 SERVICES,SERVICES,BRYERS LLP,492489,206.55,609635917
BEIS,Met Office,2024-05-14,07 EQUIPMENT,SERVICES,C K COMMERCIALS LTD,492396,-526.8,456211956
BEIS,Met Office,2024-05-14,07 EQUIPMENT,SERVICES,C K COMMERCIALS LTD,378128,526.8,456211956
BEIS,Met Office,2024-05-14,07 EQUIPMENT,SERVICES,Campbell Scientific Ltd,492368,76.5,428453933
BEIS,Met Office,2024-05-14,07 EQUIPMENT,SERVICES,Campbell Scientific Ltd,492368,132.3,428453933
BEIS,Met Office,2024-05-10,07 EQUIPMENT,SERVICES,Campbell Scientific Ltd,492261,159.3,428453933
BEIS,Met Office,2024-05-10,07 EQUIPMENT,SERVICES,Campbell Scientific Ltd,492261,194.4,428453933
BEIS,Met Office,2024-05-10,07 EQUIPMENT,SERVICES,Campbell Scientific Ltd,492261,480.6,428453933
BEIS,Met Office,2024-05-10,07 EQUIPMENT,SERVICES,Campbell Scientific Ltd,492261,900,428453933
BEIS,Met Office,2024-05-10,07 EQUIPMENT,SERVICES,Campbell Scientific Ltd,492261,1194.3,428453933
BEIS,Met Office,2024-05-22,03 STAFF COSTS T&S,SERVICES,CHARLIE'S TRAVEL LTD,492649,182.5,783848277
BEIS,Met Office,2024-05-02,03 STAFF COSTS T&S,SERVICES,CHARLIE'S TRAVEL LTD,491956,1657.54,783848277
BEIS,Met Office,2024-05-13,11 SERVICES,SERVICES,CLOUDREACH EUROPE LIMITED,492329,5260.25,978187168
BEIS,Met Office,2024-05-13,11 SERVICES,SERVICES,CLOUDREACH EUROPE LIMITED,492330,7300,978187168
BEIS,Met Office,2024-05-29,11 SERVICES,SERVICES,COMPUTACENTER (UK) LTD,492817,625.5,490334648
BEIS,Met Office,2024-05-16,03 STAFF COSTS T&S,SERVICES,DBS FINANCE RECEIPTS CTS,491786,8167,888805068
BEIS,Met Office,2024-05-01,13 MISCELLANEOUS,SERVICES,DEMSTAR BUSINESS SOLUTIONS LTD,25768,81.12,10156145J
BEIS,Met Office,2024-05-29,13 MISCELLANEOUS,SERVICES,DEMSTAR BUSINESS SOLUTIONS LTD,25847,94.06,10156145J
BEIS,Met Office,2024-05-10,STOCK,SERVICES,EDMUNDSON ELECTRICAL LTD,492163,0,338246841
BEIS,Met Office,2024-05-10,TRADE CREDITORS,SERVICES,EDMUNDSON ELECTRICAL LTD,492163,4748.2,338246841
BEIS,Met Office,2024-05-08,11 SERVICES,SERVICES,ENMAR CONSULTING LIMITED,492170,1500,08364927
BEIS,Met Office,2024-05-16,11 SERVICES,SERVICES,ESCOTT HUNT LTD,492374,190,815727127
BEIS,Met Office,2024-05-16,11 SERVICES,SERVICES,ESCOTT HUNT LTD,492374,570,815727127
BEIS,Met Office,2024-05-08,03 STAFF COSTS T&S,SERVICES,FALKLAND ISLAND COMPANY LTD,492166,800,N/A
BEIS,Met Office,2024-05-08,03 STAFF COSTS T&S,SERVICES,FALKLAND ISLAND COMPANY LTD,492167,800,N/A
BEIS,Met Office,2024-05-08,03 STAFF COSTS T&S,SERVICES,FALKLAND ISLAND COMPANY LTD,492168,800,N/A
BEIS,Met Office,2024-05-01,11 SERVICES,SERVICES,FLYFORM LTD,491928,11084.49,237333808
BEIS,Met Office,2024-05-14,11 SERVICES,SERVICES,GAMMA TELECOM LTD,492277,4791.38,823820344
BEIS,Met Office,2024-05-10,07 EQUIPMENT,SERVICES,GCHQ PUBLIC ACCOUNT - CESG,492181,3421.14,888813658
BEIS,Met Office,2024-05-14,11 SERVICES,SERVICES,GQA QUALIFICATIONS LTD,492328,55,-
BEIS,Met Office,2024-05-29,11 SERVICES,SERVICES,GROUND CONTROL UK TECHNOLOGIES LTD,492606,10640.88,GB277698137
BEIS,Met Office,2024-05-20,03 STAFF COSTS T&S,SERVICES,HCR LTD,492532,0,733 7205 46
BEIS,Met Office,2024-05-20,03 STAFF COSTS T&S,SERVICES,HCR LTD,492531,45,733 7205 46
BEIS,Met Office,2024-05-08,03 STAFF COSTS T&S,SERVICES,HCR LTD,492106,75,733 7205 46
BEIS,Met Office,2024-05-14,03 STAFF COSTS T&S,SERVICES,HCR LTD,489804,385,733 7205 46
BEIS,Met Office,2024-05-20,03 STAFF COSTS T&S,SERVICES,HCR LTD,492533,385,733 7205 46
BEIS,Met Office,2024-05-08,03 STAFF COSTS T&S,SERVICES,HCR LTD,492104,861,733 7205 46
BEIS,Met Office,2024-05-20,03 STAFF COSTS T&S,SERVICES,HCR LTD,492532,4827.09,733 7205 46
BEIS,Met Office,2024-05-13,03 STAFF COSTS T&S,SERVICES,HCR LTD,492105,7791.2,733 7205 46
BEIS,Met Office,2024-05-01,03 STAFF COSTS T&S,SERVICES,HITACHI CAPITAL VEHICLE SOLUTIONS,491897,41.56,GB 823 8248 22
BEIS,Met Office,2024-05-03,11 SERVICES,SERVICES,HITACHI CAPITAL VEHICLE SOLUTIONS,492012,6774.72,GB 823 8248 22
BEIS,Met Office,2024-05-03,11 SERVICES,SERVICES,HITACHI CAPITAL VEHICLE SOLUTIONS,492012,7471.64,GB 823 8248 22
BEIS,Met Office,2024-05-01,13 MISCELLANEOUS,SERVICES,IMAGETEK SYSTEMS LTD,491895,4689.5,GB586331424
BEIS,Met Office,2024-05-03,11 SERVICES,SERVICES,INMARSAT SOLUTIONS (CANADA) INC,492014,47.92,766144223
BEIS,Met Office,2024-05-03,11 SERVICES,SERVICES,INMARSAT SOLUTIONS (CANADA) INC,492015,47.92,766144223
BEIS,Met Office,2024-05-03,11 SERVICES,SERVICES,INMARSAT SOLUTIONS (CANADA) INC,492013,95.84,766144223
BEIS,Met Office,2024-05-31,10 EQUIPMENT MAINTENANCE,SERVICES,KERRY MARINE,492753,1979,350140941
BEIS,Met Office,2024-05-29,10 EQUIPMENT MAINTENANCE,SERVICES,KERRY MARINE,492750,9721,350140941
BEIS,Met Office,2024-05-10,11 SERVICES,SERVICES,MADE TECH,492165,296175,938565184
BEIS,Met Office,2024-05-15,08 SOFTWARE LICENCES,SERVICES,MERKLE ONE,492371,8022.92,GB478022835
BEIS,Met Office,2024-05-10,06 ACCOMMODATION,SERVICES,NORTHWOOD OFFICERS� MESS,492169,286.2,223 6434 83
BEIS,Met Office,2024-05-15,11 SERVICES,SERVICES,NSSL GLOBAL LTD,11505,76.04,725151948
BEIS,Met Office,2024-05-15,11 SERVICES,SERVICES,NSSL GLOBAL LTD,11504,135.85,725151948
BEIS,Met Office,2024-05-16,13 MISCELLANEOUS,SERVICES,PETERS & MAY GLOBAL LOGISTICS LTD,492418,75,995183276
BEIS,Met Office,2024-05-21,13 MISCELLANEOUS,SERVICES,POSTURITE (UK) LTD,492508,42.3,583565114
BEIS,Met Office,2024-05-21,13 MISCELLANEOUS,SERVICES,POSTURITE (UK) LTD,492244,50,583565114
BEIS,Met Office,2024-05-21,13 MISCELLANEOUS,SERVICES,POSTURITE (UK) LTD,492536,50,583565114
BEIS,Met Office,2024-05-21,13 MISCELLANEOUS,SERVICES,POSTURITE (UK) LTD,492509,82.61,583565114
BEIS,Met Office,2024-05-21,13 MISCELLANEOUS,SERVICES,POSTURITE (UK) LTD,492339,87.47,583565114
BEIS,Met Office,2024-05-31,13 MISCELLANEOUS,SERVICES,POSTURITE (UK) LTD,492712,139.83,583565114
BEIS,Met Office,2024-05-21,13 MISCELLANEOUS,SERVICES,POSTURITE (UK) LTD,492338,821.69,583565114
BEIS,Met Office,2024-05-31,13 MISCELLANEOUS,SERVICES,POSTURITE (UK) LTD,492682,1025.05,583565114
BEIS,Met Office,2024-05-21,13 MISCELLANEOUS,SERVICES,POSTURITE (UK) LTD,492465,1115.63,583565114
BEIS,Met Office,2024-05-28,13 MISCELLANEOUS,SERVICES,QUALITY COMPONENT ENGINEERING LTD,492011,450,723503366
BEIS,Met Office,2024-05-01,11 SERVICES,SERVICES,RAINMAKER SOLUTIONS LTD,491934,35000,-
BEIS,Met Office,2024-05-23,11 SERVICES,SERVICES,ROCKSURE SYSTEMS LTD T/A PEOPLESAFE,492650,-1728,859951462
BEIS,Met Office,2024-05-23,11 SERVICES,SERVICES,ROCKSURE SYSTEMS LTD T/A PEOPLESAFE,462079,1728,859951462
BEIS,Met Office,2024-05-08,11 SERVICES,SERVICES,ROWE IT LTD,492155,115655,924964394
BEIS,Met Office,2024-05-31,13 MISCELLANEOUS,SERVICES,Royal Meteorological Society,492821,619,-
BEIS,Met Office,2024-05-03,11 SERVICES,SERVICES,SNOWFLAKE COMPUTING U.K. LIMITED,491849,96000,268740275
BEIS,Met Office,2024-05-03,11 SERVICES,SERVICES,SOFTWIRE TECHNOLOGY LIMITED,492009,4200,752 1253 57
BEIS,Met Office,2024-05-16,03 STAFF COSTS T&S,SERVICES,STORAGE FACTORY,492463,185,130 5237 12
BEIS,Met Office,2024-05-03,11 SERVICES,SERVICES,UK HEALTH SECURITY AGENCY,492003,1840,GB888849628
BEIS,Met Office,2024-05-15,11 SERVICES,SERVICES,UK TELEMATICS LIMITED,491894,-31.72,GB763051643
BEIS,Met Office,2024-05-15,11 SERVICES,SERVICES,UK TELEMATICS LIMITED,492420,68.25,GB763051643
BEIS,Met Office,2024-05-28,11 SERVICES,SERVICES,UK TELEMATICS LIMITED,492740,68.25,GB763051643
BEIS,Met Office,2024-05-28,11 SERVICES,SERVICES,UK TELEMATICS LIMITED,492741,68.25,GB763051643
BEIS,Met Office,2024-05-15,11 SERVICES,SERVICES,UK TELEMATICS LIMITED,492421,136.5,GB763051643
BEIS,Met Office,2024-05-16,11 SERVICES,SERVICES,UK TELEMATICS LIMITED,492461,2180.88,GB763051643
BEIS,Met Office,2024-05-08,11 SERVICES,SERVICES,Vaisala Oyj,25742,85.79,FI01244162
BEIS,Met Office,2024-05-08,11 SERVICES,SERVICES,Vaisala Oyj,25742,16189.25,FI01244162
BEIS,Met Office,2024-05-29,11 SERVICES,SERVICES,Vaisala Oyj,25829,16238.68,FI01244162
BEIS,Met Office,2024-05-03,11 SERVICES,SERVICES,VEOLIA ES UK LIMITED,491992,333.32,GB 530 00 88 93
BEIS,Met Office,2024-05-03,11 SERVICES,SERVICES,VEOLIA ES UK LIMITED,491991,455.2,GB 530 00 88 93
BEIS,Met Office,2024-05-29,11 SERVICES,SERVICES,VOLKSWAGEN GROUP LEASING,492765,110.24,BG745963883
BEIS,Met Office,2024-05-29,11 SERVICES,SERVICES,VOLKSWAGEN GROUP LEASING,492767,131.05,BG745963883
BEIS,Met Office,2024-05-29,11 SERVICES,SERVICES,VOLKSWAGEN GROUP LEASING,492772,134.61,BG745963883
BEIS,Met Office,2024-05-29,11 SERVICES,SERVICES,VOLKSWAGEN GROUP LEASING,492769,134.77,BG745963883
BEIS,Met Office,2024-05-29,11 SERVICES,SERVICES,VOLKSWAGEN GROUP LEASING,492763,195.57,BG745963883
BEIS,Met Office,2024-05-29,11 SERVICES,SERVICES,VOLKSWAGEN GROUP LEASING,492764,199.82,BG745963883
BEIS,Met Office,2024-05-29,11 SERVICES,SERVICES,VOLKSWAGEN GROUP LEASING,492768,230.85,BG745963883
BEIS,Met Office,2024-05-29,11 SERVICES,SERVICES,VOLKSWAGEN GROUP LEASING,492766,248.12,BG745963883
BEIS,Met Office,2024-05-29,11 SERVICES,SERVICES,VOLKSWAGEN GROUP LEASING,492770,289.9,BG745963883
BEIS,Met Office,2024-05-29,11 SERVICES,SERVICES,VOLKSWAGEN GROUP LEASING,492771,290.06,BG745963883
BEIS,Met Office,2024-05-03,11 SERVICES,SERVICES,WT CONSULTANCY (SW) LTD,491950,16850,223 4662 25
BEIS,Met Office,2024-05-08,13 MISCELLANEOUS,SERVICES,YOUNG CALIBRATION LIMITED,492156,25,673900720
BEIS,Met Office,2024-05-08,10 EQUIPMENT MAINTENANCE,SERVICES,YOUNG CALIBRATION LIMITED,492156,1500,673900720
BEIS,Met Office,2024-05-10,11 SERVICES,TECHNOLOGY AND CIO,AKAMAI TECHNOLOGIES LTD,492153,4937.28,745091237
BEIS,Met Office,2024-05-10,11 SERVICES,TECHNOLOGY AND CIO,AKAMAI TECHNOLOGIES LTD,492153,25920.75,745091237
BEIS,Met Office,2024-05-01,11 SERVICES,TECHNOLOGY AND CIO,AMAZON WEB SERVICES EMEA SARL,11496,-4930.16,GB 283644382
BEIS,Met Office,2024-05-01,11 SERVICES,TECHNOLOGY AND CIO,AMAZON WEB SERVICES EMEA SARL,11483,555.76,GB 283644382
BEIS,Met Office,2024-05-01,11 SERVICES,TECHNOLOGY AND CIO,AMAZON WEB SERVICES EMEA SARL,11487,832.68,GB 283644382
BEIS,Met Office,2024-05-01,11 SERVICES,TECHNOLOGY AND CIO,AMAZON WEB SERVICES EMEA SARL,11488,302248.83,GB 283644382
BEIS,Met Office,2024-05-22,11 SERVICES,TECHNOLOGY AND CIO,ARDOQ UK LIMITED,492041,225,GB 307689963
BEIS,Met Office,2024-05-10,11 SERVICES,TECHNOLOGY AND CIO,BJSS LIMITED,492197,13125,613295452
BEIS,Met Office,2024-05-31,11 SERVICES,TECHNOLOGY AND CIO,BJSS LIMITED,492884,73699,613295452
BEIS,Met Office,2024-05-01,08 SOFTWARE LICENCES,TECHNOLOGY AND CIO,BYTES SOFTWARE SERVICES LTD,491852,0,823818226
BEIS,Met Office,2024-05-01,08 SOFTWARE LICENCES,TECHNOLOGY AND CIO,BYTES SOFTWARE SERVICES LTD,491851,215.2,823818226
BEIS,Met Office,2024-05-01,08 SOFTWARE LICENCES,TECHNOLOGY AND CIO,BYTES SOFTWARE SERVICES LTD,491851,215.2,823818226
BEIS,Met Office,2024-05-01,08 SOFTWARE LICENCES,TECHNOLOGY AND CIO,BYTES SOFTWARE SERVICES LTD,491851,478,823818226
BEIS,Met Office,2024-05-01,08 SOFTWARE LICENCES,TECHNOLOGY AND CIO,BYTES SOFTWARE SERVICES LTD,491851,478,823818226
BEIS,Met Office,2024-05-01,08 SOFTWARE LICENCES,TECHNOLOGY AND CIO,BYTES SOFTWARE SERVICES LTD,491852,2625.23,823818226
BEIS,Met Office,2024-05-01,08 SOFTWARE LICENCES,TECHNOLOGY AND CIO,BYTES SOFTWARE SERVICES LTD,491852,3873.6,823818226
BEIS,Met Office,2024-05-01,08 SOFTWARE LICENCES,TECHNOLOGY AND CIO,BYTES SOFTWARE SERVICES LTD,491852,7456.8,823818226
BEIS,Met Office,2024-05-01,08 SOFTWARE LICENCES,TECHNOLOGY AND CIO,BYTES SOFTWARE SERVICES LTD,491852,16683.45,823818226
BEIS,Met Office,2024-05-03,10 EQUIPMENT MAINTENANCE,TECHNOLOGY AND CIO,CDW LTD,491929,5649.88,902194939
BEIS,Met Office,2024-05-13,11 SERVICES,TECHNOLOGY AND CIO,CLOUDREACH EUROPE LIMITED,492193,3582.81,978187168
BEIS,Met Office,2024-05-31,07 EQUIPMENT,TECHNOLOGY AND CIO,COMPUTACENTER (UK) LTD,492855,81.88,490334648
BEIS,Met Office,2024-05-08,07 EQUIPMENT,TECHNOLOGY AND CIO,COMPUTACENTER (UK) LTD,492098,93.55,490334648
BEIS,Met Office,2024-05-31,07 EQUIPMENT,TECHNOLOGY AND CIO,COMPUTACENTER (UK) LTD,492856,168.74,490334648
BEIS,Met Office,2024-05-24,07 EQUIPMENT,TECHNOLOGY AND CIO,COMPUTACENTER (UK) LTD,492628,229.99,490334648
BEIS,Met Office,2024-05-31,07 EQUIPMENT,TECHNOLOGY AND CIO,COMPUTACENTER (UK) LTD,492816,347.61,490334648
BEIS,Met Office,2024-05-13,07 EQUIPMENT,TECHNOLOGY AND CIO,COMPUTACENTER (UK) LTD,492099,403.3,490334648
BEIS,Met Office,2024-05-31,07 EQUIPMENT,TECHNOLOGY AND CIO,COMPUTACENTER (UK) LTD,492854,1155.95,490334648
BEIS,Met Office,2024-05-29,08 SOFTWARE LICENCES,TECHNOLOGY AND CIO,COMPUTACENTER (UK) LTD,492815,2182.38,490334648
BEIS,Met Office,2024-05-08,07 EQUIPMENT,TECHNOLOGY AND CIO,COMPUTACENTER (UK) LTD,492094,2285,490334648
BEIS,Met Office,2024-05-29,10 EQUIPMENT MAINTENANCE,TECHNOLOGY AND CIO,COMPUTACENTER (UK) LTD,492800,3983.84,490334648
BEIS,Met Office,2024-05-03,07 EQUIPMENT,TECHNOLOGY AND CIO,COMPUTACENTER (UK) LTD,491954,7345,490334648
BEIS,Met Office,2024-05-29,07 EQUIPMENT,TECHNOLOGY AND CIO,COMPUTACENTER (UK) LTD,492815,11097,490334648
BEIS,Met Office,2024-05-31,10 EQUIPMENT MAINTENANCE,TECHNOLOGY AND CIO,COMPUTACENTER (UK) LTD,492818,17301.96,490334648
BEIS,Met Office,2024-05-29,08 SOFTWARE LICENCES,TECHNOLOGY AND CIO,COMPUTACENTER (UK) LTD,492815,90702.48,490334648
BEIS,Met Office,2024-05-14,11 SERVICES,TECHNOLOGY AND CIO,ENERVEO LTD (SSE CONTRACTING LTD),492194,1301.95,382894546
BEIS,Met Office,2024-05-15,11 SERVICES,TECHNOLOGY AND CIO,ENERVEO LTD (SSE CONTRACTING LTD),492091,10900.83,382894546
BEIS,Met Office,2024-05-03,11 SERVICES,TECHNOLOGY AND CIO,EXPONENTIAL-E,492005,3354.58,GB798572653
BEIS,Met Office,2024-05-03,08 SOFTWARE LICENCES,TECHNOLOGY AND CIO,GOOGLE IRELAND LTD,492017,37.49,6388047V
BEIS,Met Office,2024-05-22,08 SOFTWARE LICENCES,TECHNOLOGY AND CIO,"IBL SOFTWARE ENGINEERING, SPOL S.R.O.",25838,18671.19,SK2020241883
BEIS,Met Office,2024-05-08,08 SOFTWARE LICENCES,TECHNOLOGY AND CIO,"IBL SOFTWARE ENGINEERING, SPOL S.R.O.",491122,31270.5,SK2020241883
BEIS,Met Office,2024-05-08,08 SOFTWARE LICENCES,TECHNOLOGY AND CIO,"IBL SOFTWARE ENGINEERING, SPOL S.R.O.",491122,119255.43,SK2020241883
BEIS,Met Office,2024-05-03,08 SOFTWARE LICENCES,TECHNOLOGY AND CIO,Ibm United Kingdom Ltd,492004,7632,107328000
BEIS,Met Office,2024-05-14,11 SERVICES,TECHNOLOGY AND CIO,INFORMATION SECURITY FORUM LIMITED,492327,17500,GB 606 0386 62
BEIS,Met Office,2024-05-01,10 EQUIPMENT MAINTENANCE,TECHNOLOGY AND CIO,ORACLE CORPORATION UK LTD,491903,275192.2,391313073
BEIS,Met Office,2024-05-08,07 EQUIPMENT,TECHNOLOGY AND CIO,ORACLE CORPORATION UK LTD,492161,363606.73,391313073
BEIS,Met Office,2024-05-10,11 SERVICES,TECHNOLOGY AND CIO,PLANB CONSULTING,492137,3645,787644667
BEIS,Met Office,2024-05-07,08 SOFTWARE LICENCES,TECHNOLOGY AND CIO,Presentation Cartography Ltd,491921,80.58,-
BEIS,Met Office,2024-05-07,08 SOFTWARE LICENCES,TECHNOLOGY AND CIO,Presentation Cartography Ltd,491920,283.67,-
BEIS,Met Office,2024-05-07,08 SOFTWARE LICENCES,TECHNOLOGY AND CIO,Presentation Cartography Ltd,491920,300.81,-
BEIS,Met Office,2024-05-07,08 SOFTWARE LICENCES,TECHNOLOGY AND CIO,Presentation Cartography Ltd,491921,334.13,-
BEIS,Met Office,2024-05-07,08 SOFTWARE LICENCES,TECHNOLOGY AND CIO,Presentation Cartography Ltd,491920,1632.97,-
BEIS,Met Office,2024-05-07,08 SOFTWARE LICENCES,TECHNOLOGY AND CIO,Presentation Cartography Ltd,491921,2014.58,-
BEIS,Met Office,2024-05-07,08 SOFTWARE LICENCES,TECHNOLOGY AND CIO,Presentation Cartography Ltd,491920,7091.76,-
BEIS,Met Office,2024-05-07,08 SOFTWARE LICENCES,TECHNOLOGY AND CIO,Presentation Cartography Ltd,491920,7520.24,-
BEIS,Met Office,2024-05-07,08 SOFTWARE LICENCES,TECHNOLOGY AND CIO,Presentation Cartography Ltd,491921,8353.28,-
BEIS,Met Office,2024-05-07,08 SOFTWARE LICENCES,TECHNOLOGY AND CIO,Presentation Cartography Ltd,491920,40824.16,-
BEIS,Met Office,2024-05-15,11 SERVICES,TECHNOLOGY AND CIO,QA LTD,492381,1298.67,864455303
BEIS,Met Office,2024-05-31,11 SERVICES,TECHNOLOGY AND CIO,QA LTD,492640,2700,864455303
BEIS,Met Office,2024-05-15,11 SERVICES,TECHNOLOGY AND CIO,QA LTD,492385,4455,864455303
BEIS,Met Office,2024-05-15,11 SERVICES,TECHNOLOGY AND CIO,QA LTD,492388,4500,864455303
BEIS,Met Office,2024-05-15,11 SERVICES,TECHNOLOGY AND CIO,QA LTD,492381,4701.33,864455303
BEIS,Met Office,2024-05-15,11 SERVICES,TECHNOLOGY AND CIO,QA LTD,492376,4800,864455303
BEIS,Met Office,2024-05-15,11 SERVICES,TECHNOLOGY AND CIO,QA LTD,492382,4800,864455303
BEIS,Met Office,2024-05-17,11 SERVICES,TECHNOLOGY AND CIO,QA LTD,492384,4800,864455303
BEIS,Met Office,2024-05-15,11 SERVICES,TECHNOLOGY AND CIO,QA LTD,492380,4950,864455303
BEIS,Met Office,2024-05-17,11 SERVICES,TECHNOLOGY AND CIO,QA LTD,492387,5100,864455303
BEIS,Met Office,2024-05-15,11 SERVICES,TECHNOLOGY AND CIO,QA LTD,492389,5100,864455303
BEIS,Met Office,2024-05-15,11 SERVICES,TECHNOLOGY AND CIO,QA LTD,492378,6000,864455303
BEIS,Met Office,2024-05-31,11 SERVICES,TECHNOLOGY AND CIO,QA LTD,492383,6150,864455303
BEIS,Met Office,2024-05-15,11 SERVICES,TECHNOLOGY AND CIO,QA LTD,492386,6300,864455303
BEIS,Met Office,2024-05-15,11 SERVICES,TECHNOLOGY AND CIO,QA LTD,492379,11400,864455303
BEIS,Met Office,2024-05-10,11 SERVICES,TECHNOLOGY AND CIO,REDROCK CONSULTING LIMITED,492192,16800,862 2477 15
BEIS,Met Office,2024-05-10,11 SERVICES,TECHNOLOGY AND CIO,ROWE IT LTD,492178,36087.5,924964394
BEIS,Met Office,2024-05-10,11 SERVICES,TECHNOLOGY AND CIO,ROWE IT LTD,492243,51550,924964394
BEIS,Met Office,2024-05-13,11 SERVICES,TECHNOLOGY AND CIO,SPECIALIST COMPUTER CENTRES,491756,4448.83,313651680
BEIS,Met Office,2024-05-13,08 SOFTWARE LICENCES,TECHNOLOGY AND CIO,SPECIALIST COMPUTER CENTRES,492237,9840.31,313651680
BEIS,Met Office,2024-05-13,11 SERVICES,TECHNOLOGY AND CIO,SPECIALIST COMPUTER CENTRES,491756,31422.35,313651680
BEIS,Met Office,2024-05-21,11 SERVICES,TECHNOLOGY AND CIO,SPECIALIST COMPUTER CENTRES,492567,32300.18,313651680
BEIS,Met Office,2024-05-15,11 SERVICES,TECHNOLOGY AND CIO,TRIAD GROUP PLC,492394,58.5,GB492999762
BEIS,Met Office,2024-05-13,11 SERVICES,TECHNOLOGY AND CIO,TRIAD GROUP PLC,492188,3150,GB492999762
BEIS,Met Office,2024-05-13,11 SERVICES,TECHNOLOGY AND CIO,TRIAD GROUP PLC,492190,7200,GB492999762
BEIS,Met Office,2024-05-13,11 SERVICES,TECHNOLOGY AND CIO,TRIAD GROUP PLC,492187,7790,GB492999762
BEIS,Met Office,2024-05-13,11 SERVICES,TECHNOLOGY AND CIO,TRIAD GROUP PLC,492187,8325,GB492999762
BEIS,Met Office,2024-05-13,11 SERVICES,TECHNOLOGY AND CIO,TRIAD GROUP PLC,492187,8910,GB492999762
BEIS,Met Office,2024-05-13,11 SERVICES,TECHNOLOGY AND CIO,TRIAD GROUP PLC,492187,9000,GB492999762
BEIS,Met Office,2024-05-13,11 SERVICES,TECHNOLOGY AND CIO,TRIAD GROUP PLC,492186,9450,GB492999762
BEIS,Met Office,2024-05-13,11 SERVICES,TECHNOLOGY AND CIO,TRIAD GROUP PLC,492187,9450,GB492999762
BEIS,Met Office,2024-05-13,11 SERVICES,TECHNOLOGY AND CIO,TRIAD GROUP PLC,492188,9450,GB492999762
BEIS,Met Office,2024-05-13,11 SERVICES,TECHNOLOGY AND CIO,TRIAD GROUP PLC,492187,9720,GB492999762
BEIS,Met Office,2024-05-13,11 SERVICES,TECHNOLOGY AND CIO,TRIAD GROUP PLC,492188,9800,GB492999762
BEIS,Met Office,2024-05-13,11 SERVICES,TECHNOLOGY AND CIO,TRIAD GROUP PLC,492187,9860,GB492999762
BEIS,Met Office,2024-05-13,11 SERVICES,TECHNOLOGY AND CIO,TRIAD GROUP PLC,492189,10150,GB492999762
BEIS,Met Office,2024-05-13,11 SERVICES,TECHNOLOGY AND CIO,TRIAD GROUP PLC,492187,10800,GB492999762
BEIS,Met Office,2024-05-13,11 SERVICES,TECHNOLOGY AND CIO,TRIAD GROUP PLC,492185,11340,GB492999762
BEIS,Met Office,2024-05-13,11 SERVICES,TECHNOLOGY AND CIO,TRIAD GROUP PLC,492185,11340,GB492999762
BEIS,Met Office,2024-05-13,11 SERVICES,TECHNOLOGY AND CIO,TRIAD GROUP PLC,492187,11340,GB492999762
BEIS,Met Office,2024-05-13,11 SERVICES,TECHNOLOGY AND CIO,TRIAD GROUP PLC,492187,12180,GB492999762
BEIS,Met Office,2024-05-13,11 SERVICES,TECHNOLOGY AND CIO,TRIAD GROUP PLC,492188,12600,GB492999762
BEIS,Met Office,2024-05-03,11 SERVICES,TECHNOLOGY AND CIO,WIREFAST LTD,491964,178.67,749536001
BEIS,Met Office,2024-05-03,11 SERVICES,TECHNOLOGY AND CIO,WIREFAST LTD,491965,1037.33,749536001
BEIS,Met Office,2024-05-03,11 SERVICES,TECHNOLOGY AND CIO,WIREFAST LTD,491961,1144.46,749536001
BEIS,Met Office,2024-05-07,11 SERVICES,TECHNOLOGY AND CIO,WT CONSULTANCY (SW) LTD,491951,1050,223 4662 25
BEIS,Met Office,2024-05-21,Unknown,Unknown,BECO LTD,386352,0,141572332
